bitfinex/quotes_SOLUSD_20220307
["timestamp","ask_amount","ask_price","bid_price","bid_amount"]
[1646640384720,22.80499216,82.082,82.021,61.53664096]
[1646640385122,2.83613526,82.09,82.021,61.53664096]
[1646640385323,6.64107436,82.089,82.021,61.53664096]
[1646640385521,29.39156011,82.089,82.021,61.53664096]
[1646640385722,6.64107436,82.088,82.021,61.53664096]
[1646640385921,29.39156011,82.088,82.021,61.53664096]
[1646640386121,29.4157917,82.087,82.021,61.53664096]
[1646640386324,6.64107436,82.086,82.021,61.53664096]
[1646640386525,29.4157917,82.086,82.021,61.53664096]
[1646640386726,45.52520309,82.085,82.021,61.53664096]
[1646640386924,52.16627745,82.085,82.021,61.53664096]
[1646640387224,45.52520309,82.084,82.021,61.53664096]
[1646640387623,114.1,82.08,82.021,61.53664096]
[1646640387824,6.64132212,82.079,82.021,61.53664096]
[1646640388021,73.74235066,82.079,82.021,38.29201353]
[1646640388224,25.6108526,82.078,81.99,120.5]
[1646640388427,32.25251647,82.078,81.99,120.5]
[1646640388623,2.83613526,82.077,81.99,120.5]
[1646640388823,2.83613526,82.077,81.981,120.5]
[1646640389024,6.64163339,82.076,81.981,120.5]
[1646640389228,29.41635073,82.076,81.982,54.97368643]
[1646640389428,29.41635073,82.075,81.982,54.97368643]
[1646640389626,3.21067059,82.072,81.982,54.97368643]
[1646640389826,11.55073334,82.074,81.982,54.97368643]
[1646640389827,14.68,82.07,81.982,54.97368643]
[1646640390027,6.64163339,82.069,81.982,54.97368643]
[1646640390427,14.36010964,82.068,81.982,54.97368643]
[1646640390627,6.64163339,82.067,81.982,54.97368643]
[1646640391027,0.95717595,82.066,81.982,54.97368643]
[1646640391227,30.70644205,82.066,81.982,54.97368643]
[1646640391426,33.55476423,82.065,81.982,54.97368643]
[1646640391626,3.21067059,82.059,81.982,54.97368643]
[1646640391829,3.21067059,82.058,81.982,54.97368643]
[1646640392026,29.7492661,82.058,81.982,54.97368643]
[1646640392228,6.64163339,82.057,81.982,54.97368643]
[1646640392428,36.39089949,82.057,81.982,54.97368643]
[1646640392629,33.55476423,82.056,81.982,54.97368643]
[1646640392831,26.91313084,82.056,81.983,120.5]
[1646640393030,3.21067059,82.077,81.983,120.5]
[1646640393229,6.64091841,82.077,81.984,0.63885886]
[1646640393631,6.64091841,82.076,81.984,0.63885886]
[1646640393829,6.64091841,82.076,81.991,120.5]
[1646640394029,6.64091841,82.079,81.991,120.5]
[1646640394230,6.64091841,82.079,81.992,0.63885886]
[1646640394629,31.47404925,82.079,81.992,0.63885886]
[1646640394830,6.64091841,82.078,81.992,0.63885886]
[1646640395031,6.64091841,82.078,81.982,54.97368643]
[1646640395230,3.21067059,82.075,81.982,54.97368643]
[1646640395430,4.94847619,82.074,81.982,54.97368643]
[1646640395630,9.851589,82.073,81.982,54.97368643]
[1646640395833,3.21067059,82.072,81.982,54.97368643]
[1646640396031,3.21067059,82.072,81.983,120.5]
[1646640396230,3.21067059,82.069,81.983,120.5]
[1646640396631,3.21067059,82.068,81.983,120.5]
[1646640396832,6.04680585,82.068,81.983,120.5]
[1646640397035,6.64091841,82.07,81.991,120.5]
[1646640397233,6.64091841,82.07,81.982,54.97368643]
[1646640397234,3.21067059,82.077,82.001,120.5]
[1646640397434,6.64032722,82.078,82.002,0.47735491]
[1646640397635,6.64032722,82.078,82.001,120.5]
[1646640397835,2.83613526,82.076,82.002,51.47173311]
[1646640398035,3.21067059,82.074,82.002,51.47173311]
[1646640398234,3.21067059,82.072,82.002,51.47173311]
[1646640398434,3.21067059,82.07,82.002,51.47173311]
[1646640398637,4.01626235,82.069,82.002,51.47173311]
[1646640398841,28.84939319,82.069,82.002,51.47173311]
[1646640399038,31.47345806,82.068,82.002,51.47173311]
[1646640399238,6.64032722,82.067,82.002,51.47173311]
[1646640399441,31.47345806,82.067,82.002,51.47173311]
[1646640399642,6.64032722,82.066,82.002,51.47173311]
[1646640399839,34.30959332,82.066,82.002,51.47173311]
[1646640400040,6.64032722,82.065,82.002,51.47173311]
[1646640400240,34.30959332,82.065,82.002,51.47173311]
[1646640400439,9.47646248,82.064,82.002,51.47173311]
[1646640400639,24.83313084,82.064,82.002,51.47173311]
[1646640400839,3.21067059,82.071,82.002,51.47173311]
[1646640401240,24.83313084,82.07,82.002,51.47173311]
[1646640401443,28.04380143,82.07,82.002,51.47173311]
[1646640401641,3.21067059,82.068,82.002,51.47173311]
[1646640402041,3.21067059,82.067,82.002,51.47173311]
[1646640402244,28.04380143,82.067,82.002,51.47173311]
[1646640402442,31.47496642,82.066,82.002,51.47173311]
[1646640402642,6.64183558,82.065,82.002,51.47173311]
[1646640402840,34.68563701,82.065,82.002,51.47173311]
[1646640403041,31.47496642,82.064,82.002,51.47173311]
[1646640403445,9.85250617,82.063,82.002,51.47173311]
[1646640403741,3.21067059,82.062,82.002,51.47173311]
[1646640403941,6.64183558,82.063,82.002,51.47173311]
[1646640404141,6.64183558,82.063,82.003,120.5]
[1646640404342,3.21067059,82.067,82.003,120.5]
[1646640404542,3.21067059,82.068,82.003,120.5]
[1646640404748,3.21067059,82.069,82.003,120.5]
[1646640405551,3.21067059,82.074,82.012,0.46363831]
[1646640405746,4.81581124,82.122,82.021,120.5]
[1646640405944,4.81581124,82.139,82.022,0.58953462]
[1646640406148,24.45318981,82.138,82.022,0.58953462]
[1646640406345,47.22367861,82.138,82.023,120.5]
[1646640406545,22.7704888,82.138,82.024,0.59383346]
[1646640406744,4.81581124,82.148,82.051,120.5]
[1646640406745,22.7704888,82.137,82.051,120.5]
[1646640406946,22.7704888,82.137,82.061,120.5]
[1646640407146,22.7704888,82.147,82.061,120.5]
[1646640407351,22.7704888,82.147,82.062,0.61160094]
[1646640407547,22.7704888,82.146,82.062,0.61160094]
[1646640407747,22.7704888,82.146,82.064,0.61160094]
[1646640407948,4.81581124,82.154,82.064,0.61160094]
[1646640408347,24.45318981,82.145,82.064,0.61160094]
[1646640408547,24.45318981,82.145,82.063,120.5]
[1646640408748,22.75887255,82.144,82.063,120.5]
[1646640409146,24.45318981,82.144,82.063,120.5]
[1646640409753,24.45318981,82.144,82.071,120.5]
[1646640409956,24.45318981,82.16,82.072,0.457941]
[1646640410554,28.71737207,82.159,82.076,120.5]
[1646640410755,28.71737207,82.159,82.075,57.91683174]
[1646640410955,24.45318981,82.158,82.076,120.5]
[1646640411155,24.45318981,82.158,82.077,6.088]
[1646640411357,24.45318981,82.158,82.076,6.088]
[1646640411777,24.45318981,82.158,82.08,18.2703]
[1646640411978,24.45318981,82.177,82.082,0.45046005]
[1646640412178,24.45318981,82.177,82.081,126.588]
[1646640412778,25.65346325,82.175,82.081,126.588]
[1646640413178,24.45318981,82.174,82.081,126.588]
[1646640413379,50.02791438,82.174,82.081,126.588]
[1646640413679,18.2754,82.17,82.081,6.088]
[1646640414079,24.45318981,82.169,82.076,6.088]
[1646640414280,50.02791438,82.169,82.076,6.088]
[1646640414479,123.44711255,82.168,82.05,14.68]
[1646640414680,114.1,82.145,82.051,6.089]
[1646640414881,14.68,82.14,82.051,6.089]
[1646640415083,4.02288848,82.119,82.022,6.09]
[1646640415280,14.68,82.13,82.011,6.091]
[1646640415481,21.27536716,82.116,82.012,55.75830432]
[1646640415680,21.27536716,82.116,82.014,120.5]
[1646640415881,2.83613526,82.115,82.016,120.5]
[1646640416083,2.83613526,82.115,82.018,120.5]
[1646640416781,18.2888,82.11,82.012,55.75830432]
[1646640417184,2.83613526,82.109,82.012,55.75830432]
[1646640419084,2.83613526,82.109,82.013,0.40105988]
[1646640419283,22.80012739,82.108,82.013,120.5]
[1646640419485,22.80012739,82.108,82.014,0.50146425]
[1646640419686,2.83613526,82.107,82.017,0.50146425]
[1646640419884,2.83613526,82.107,82.02,0.50146425]
[1646640420088,2.83613526,82.107,82.022,120.5]
[1646640420287,2.83613526,82.107,82.023,0.50146425]
[1646640420894,2.83613526,82.107,82.022,120.5]
[1646640420895,2.83613526,82.107,82.025,61.84742641]
[1646640421088,2.83613526,82.107,82.026,120.5]
[1646640421288,2.83613526,82.107,82.027,0.59339305]
[1646640421687,2.83613526,82.107,82.032,0.59908456]
[1646640421888,2.83613526,82.107,82.034,0.59908456]
[1646640422088,2.83613526,82.107,82.037,0.59908456]
[1646640422289,2.83613526,82.136,82.04,0.59908456]
[1646640422490,24.45318981,82.137,82.042,0.59908456]
[1646640422693,24.4466,82.139,82.044,120.5]
[1646640422891,22.85018832,82.136,82.047,0.59908456]
[1646640423389,21.99658446,82.137,82.049,60.1311886]
[1646640423789,22.85018832,82.136,82.049,180.6311886]
[1646640423991,47.30337813,82.136,82.049,180.6311886]
[1646640424290,24.45318981,82.135,82.049,60.1311886]
[1646640424692,47.30337813,82.135,82.049,180.6311886]
[1646640425002,22.85018832,82.134,82.049,180.6311886]
[1646640425391,50.13951339,82.134,82.049,180.6311886]
[1646640425793,22.85018832,82.133,82.049,180.6311886]
[1646640426595,47.30337813,82.133,82.049,180.6311886]
[1646640426793,47.30337813,82.133,82.049,60.1311886]
[1646640426996,25.68632358,82.132,82.05,6.09]
[1646640427394,25.68632358,82.131,82.05,6.09]
[1646640427798,25.68632358,82.13,82.05,6.09]
[1646640428195,25.68632358,82.129,82.05,6.09]
[1646640428596,25.68632358,82.128,82.05,6.09]
[1646640428796,25.68632358,82.128,82.049,180.6311886]
[1646640428995,25.68632358,82.127,82.049,180.6311886]
[1646640429395,25.68632358,82.126,82.049,180.6311886]
[1646640429596,25.68632358,82.126,82.05,6.091]
[1646640429796,24.45318981,82.132,82.05,6.091]
[1646640430200,22.87882301,82.131,82.051,120.5]
[1646640430400,22.87882301,82.131,82.053,120.5]
[1646640430599,47.33201282,82.131,82.054,6.09]
[1646640430801,47.33201282,82.131,82.05,6.09]
[1646640431002,22.87882301,82.13,82.05,6.09]
[1646640431701,24.45318981,82.129,82.05,6.09]
[1646640432302,22.87882301,82.128,82.05,6.09]
[1646640432703,47.33201282,82.128,82.05,6.09]
[1646640433110,22.87882301,82.127,82.05,6.09]
[1646640433503,47.33201282,82.127,82.05,6.09]
[1646640433908,22.87882301,82.126,82.05,6.09]
[1646640434205,24.45318981,82.125,82.051,120.5]
[1646640434404,24.45318981,82.125,82.052,6.091]
[1646640434604,24.45318981,82.125,82.053,120.5]
[1646640434805,22.87882301,82.124,82.055,120.5]
[1646640435205,22.87882301,82.124,82.056,6.09]
[1646640435407,22.87882301,82.124,82.049,60.1311886]
[1646640435408,22.87882301,82.124,82.05,6.09]
[1646640435804,47.33201282,82.124,82.05,6.09]
[1646640436004,24.45318981,82.124,82.051,120.5]
[1646640436204,24.45318981,82.124,82.053,120.5]
[1646640436405,24.45318981,82.124,82.055,120.5]
[1646640437407,2.83613526,82.123,82.05,6.09]
[1646640437604,25.74779032,82.123,82.05,6.09]
[1646640437807,24.45318981,82.122,82.05,6.09]
[1646640438029,23.53774493,82.121,82.049,60.1311886]
[1646640438307,26.37388019,82.121,82.011,6.091]
[1646640438508,64.99195742,82.12,82.012,120.5]
[1646640438705,83.16738013,82.12,82.014,120.5]
[1646640438907,50.20098013,82.119,82.011,6.091]
[1646640439409,50.20098013,82.118,82.012,49.98265199]
[1646640439806,27.28932507,82.117,82.012,49.98265199]
[1646640440007,50.20098013,82.117,82.012,49.98265199]
[1646640440207,18.2889,82.11,82.012,49.98265199]
[1646640440616,6.0344043,82.108,82.012,49.98265199]
[1646640441009,27.28932507,82.107,82.012,49.98265199]
[1646640441208,22.91165506,82.106,82.013,120.5]
[1646640441411,22.91165506,82.106,82.014,0.41409998]
[1646640441610,22.91165506,82.106,82.017,0.46044155]
[1646640441910,22.91165506,82.106,82.016,120.5]
[1646640441911,22.91165506,82.106,82.021,120.5]
[1646640442109,30.51333178,82.126,82.02,15.18960605]
[1646640442110,22.853,82.127,82.023,120.5]
[1646640442312,22.853,82.127,82.025,120.5]
[1646640442512,22.9311487,82.126,82.031,120.5]
[1646640442715,25.76728396,82.126,82.032,0.64403549]
[1646640442913,24.45318981,82.125,82.032,0.64403549]
[1646640443116,27.28932507,82.125,82.032,0.64403549]
[1646640443313,22.9311487,82.124,82.032,0.64403549]
[1646640443915,47.38433851,82.124,82.032,0.64403549]
[1646640444517,22.9311487,82.123,82.032,0.64403549]
[1646640444715,22.9311487,82.123,82.041,120.5]
[1646640444916,22.9311487,82.122,82.042,0.39160719]
[1646640445115,22.9311487,82.122,82.041,120.5]
[1646640445315,22.9311487,82.121,82.043,120.5]
[1646640445538,24.8635,82.138,82.044,0.79831518]
[1646640445740,22.8051,82.163,82.051,120.5]
[1646640445937,22.8051,82.163,82.061,120.5]
[1646640446138,22.8051,82.163,82.052,0.82982224]
[1646640446139,22.8051,82.163,82.071,120.5]
[1646640446338,22.9471,82.176,82.08,14.68]
[1646640446537,22.9471,82.176,82.082,0.82982224]
[1646640446738,22.9471,82.176,82.082,10.02982224]
[1646640446937,22.9471,82.176,82.084,0.82982224]
[1646640447339,23.73346716,82.182,82.086,120.5]
[1646640447539,23.73346716,82.182,82.101,120.5]
[1646640447739,0.66306716,82.182,82.111,120.5]
[1646640447939,0.66306716,82.182,82.112,0.82982224]
[1646640448340,5.46102777,82.255,82.112,0.82982224]
[1646640448341,24.45318981,82.215,82.114,120.5]
[1646640448538,24.45318981,82.215,82.115,0.82982224]
[1646640448738,138.55318981,82.214,82.121,120.5]
[1646640448938,138.55318981,82.214,82.131,120.5]
[1646640449137,138.55318981,82.214,82.132,0.82982224]
[1646640449337,138.55318981,82.214,82.134,120.5]
[1646640449538,24.45318981,82.233,82.135,0.82982224]
[1646640449739,24.45318981,82.233,82.141,120.5]
[1646640450039,24.45318981,82.233,82.152,0.82982224]
[1646640450437,24.45318981,82.233,82.154,120.5]
[1646640450639,24.45318981,82.233,82.155,0.82982224]
[1646640450846,24.45318981,82.249,82.171,120.5]
[1646640451040,114.1,82.251,82.171,120.5]
[1646640451740,24.45318981,82.266,82.174,0.82982224]
[1646640451741,40.48681325,82.265,82.174,0.82982224]
[1646640452540,22.83608589,82.239,82.174,0.82982224]
[1646640452940,22.83608589,82.239,82.173,120.5]
[1646640453843,64.94000306,82.238,82.172,60.68093906]
[1646640454245,24.45318981,82.237,82.172,60.68093906]
[1646640454448,27.28932507,82.237,82.14,14.68]
[1646640454645,5.07779539,82.236,82.14,14.68]
[1646640454845,18.2619,82.23,82.07,183.56]
[1646640455049,32.9419,82.23,82.05,183.56]
[1646640455244,4.26896255,82.22,82.09,14.68]
[1646640455444,4.26896255,82.22,82.032,12.70699425]
[1646640455445,4.60379029,82.209,82.119,61.65292017]
[1646640456048,42.64420946,82.208,82.119,61.65292017]
[1646640456250,18.2737,82.2,82.119,61.65292017]
[1646640456449,40.48681325,82.199,82.119,61.65292017]
[1646640457049,40.48681325,82.199,82.119,182.15292017]
[1646640457651,40.48681325,82.199,82.122,120.5]
[1646640457853,27.28932507,82.207,82.122,120.5]
[1646640458053,27.28932507,82.207,82.123,0.39147566]
[1646640458453,2.83613526,82.217,82.123,0.39147566]
[1646640458852,73.93118984,82.216,82.123,0.39147566]
[1646640459151,49.47800003,82.216,82.122,120.5]
[1646640459351,24.45318981,82.215,82.122,120.5]
[1646640459551,27.28932507,82.215,82.122,120.5]
[1646640459753,2.83613526,82.214,82.122,120.5]
[1646640459953,2.83613526,82.214,82.132,0.53118062]
[1646640460156,24.45318981,82.23,82.132,0.53118062]
[1646640460353,24.45318981,82.23,82.133,120.5]
[1646640460553,51.06215518,82.236,82.134,0.53118062]
[1646640460752,24.17506989,82.242,82.134,0.53118062]
[1646640461753,41.56841082,82.241,82.134,0.53118062]
[1646640461954,24.17506989,82.242,82.141,120.5]
[1646640462154,24.17506989,82.242,82.142,0.53118062]
[1646640462553,23.36221022,82.238,82.142,0.53118062]
[1646640462754,23.36221022,82.238,82.14,14.68]
[1646640463053,51.04717042,82.237,82.14,14.68]
[1646640463253,53.88330568,82.237,82.14,14.68]
[1646640463456,41.55322987,82.236,82.14,14.68]
[1646640463855,46.36056091,82.235,82.14,14.68]
[1646640464054,18.2617,82.23,82.14,14.68]
[1646640464456,18.2617,82.23,82.133,6.083]
[1646640464457,114.1,82.226,82.133,6.083]
[1646640464655,114.1,82.226,82.132,57.79596876]
[1646640464656,2.23017196,82.224,82.132,57.79596876]
[1646640464855,5.2249679,82.208,82.122,6.083]
[1646640465057,0.11097729,82.207,82.087,6.085]
[1646640465456,0.11097729,82.203,82.087,6.085]
[1646640465656,18.2733,82.18,82.087,6.085]
[1646640465857,18.2733,82.18,82.114,51.56302212]
[1646640465858,5.83950357,82.179,82.114,51.56302212]
[1646640466359,2.83613526,82.178,82.114,51.56302212]
[1646640466962,18.2751,82.17,82.07,14.68]
[1646640467163,0.11097729,82.169,82.06,14.68]
[1646640467361,4.68291923,82.168,82.061,6.089]
[1646640467560,0.11097729,82.167,82.051,6.089]
[1646640467959,27.91434548,82.166,82.052,60.60808793]
[1646640468160,45.71488281,82.165,82.053,6.089]
[1646640468360,73.62922829,82.165,82.053,6.089]
[1646640468560,27.91434548,82.164,82.053,6.089]
[1646640468962,27.91434548,82.163,82.053,6.089]
[1646640469163,5.16038165,82.159,82.053,6.089]
[1646640469561,25.07821022,82.158,82.053,6.089]
[1646640469762,27.91434548,82.158,82.053,6.089]
[1646640469963,2.83613526,82.157,82.054,120.5]
[1646640470167,2.83613526,82.157,82.056,120.5]
[1646640470365,2.83613526,82.157,82.058,120.5]
[1646640470568,2.83613526,82.157,82.059,127.1735027]
[1646640470767,18.2796,82.15,82.059,6.6735027]
[1646640470968,7.45148228,82.149,82.059,6.089]
[1646640471167,7.45148228,82.149,82.052,60.60808793]
[1646640471168,35.36582776,82.149,82.052,60.60808793]
[1646640471367,27.91434548,82.148,82.052,60.60808793]
[1646640471786,2.83613526,82.147,82.053,0.45541032]
[1646640471986,2.83613526,82.147,82.053,120.95541032]
[1646640472586,2.83613526,82.147,82.056,0.6311616]
[1646640472788,2.83613526,82.147,82.06,18.2724]
[1646640473087,2.83613526,82.147,82.062,0.6311616]
[1646640473889,1.60354243,82.155,82.062,121.1311616]
[1646640474088,2.83613526,82.158,82.064,120.5]
[1646640474289,2.83613526,82.158,82.066,120.5]
[1646640474488,2.83613526,82.158,82.072,0.6311616]
[1646640474889,1.60354243,82.155,82.073,120.5]
[1646640475090,1.60354243,82.155,82.075,120.5]
[1646640475292,1.60354243,82.155,82.078,0.6311616]
[1646640475493,4.43967769,82.155,82.08,0.6311616]
[1646640475695,2.83613526,82.155,82.082,0.6311616]
[1646640475892,2.83613526,82.155,82.081,0.6311616]
[1646640476496,2.83613526,82.155,82.083,0.6311616]
[1646640476694,2.83613526,82.155,82.081,0.6311616]
[1646640476894,1.60354243,82.159,82.083,0.6311616]
[1646640477093,1.60354243,82.159,82.084,6.088]
[1646640477294,1.60354243,82.159,82.085,53.27386395]
[1646640477495,1.60354243,82.16,82.087,0.6311616]
[1646640477695,1.60354243,82.159,82.089,120.5]
[1646640477896,4.43967769,82.165,82.09,0.64784954]
[1646640478098,2.83613526,82.165,82.093,0.64784954]
[1646640478295,2.83613526,82.165,82.096,0.64784954]
[1646640478496,2.83613526,82.165,82.097,6.087]
[1646640478796,2.83613526,82.165,82.098,62.96515505]
[1646640478998,2.83613526,82.165,82.1,0.64784954]
[1646640479197,2.83613526,82.165,82.099,6.087]
[1646640479396,1.60354243,82.168,82.099,6.087]
[1646640479598,1.60354243,82.169,82.1,0.60210847]
[1646640479897,1.60354243,82.171,82.102,121.10210847]
[1646640480203,1.60354243,82.172,82.103,6.087]
[1646640480400,1.60354243,82.172,82.099,6.087]
[1646640480599,1.60354243,82.171,82.099,120.5]
[1646640481100,1.60354243,82.171,82.1,6.087]
[1646640481507,1.60354243,82.171,82.099,120.5]
[1646640481900,1.60354243,82.17,82.099,120.5]
[1646640482299,2.83613526,82.183,82.098,62.31730551]
[1646640482300,1.60354243,82.171,82.101,120.5]
[1646640482500,1.60354243,82.175,82.103,120.5]
[1646640482701,1.60354243,82.176,82.105,120.5]
[1646640482901,1.60354243,82.176,82.106,0.66956489]
[1646640483101,1.60354243,82.173,82.109,0.66956489]
[1646640483300,1.60354243,82.173,82.111,120.5]
[1646640483500,1.60354243,82.174,82.113,120.5]
[1646640483702,1.60354243,82.174,82.115,120.5]
[1646640483903,2.83613526,82.183,82.115,120.5]
[1646640483904,1.60354243,82.176,82.116,0.66956489]
[1646640484105,1.60354243,82.177,82.118,120.5]
[1646640484301,1.60354243,82.177,82.119,0.66956489]
[1646640484500,1.60354243,82.176,82.119,0.66956489]
[1646640485501,1.60354243,82.175,82.119,0.66956489]
[1646640485705,1.60354243,82.175,82.118,120.5]
[1646640487004,1.60354243,82.175,82.119,0.39734715]
[1646640487405,1.60354243,82.175,82.118,120.5]
[1646640487804,1.60354243,82.174,82.117,46.13362235]
[1646640488205,2.83613526,82.174,82.117,46.13362235]
[1646640489408,2.83613526,82.174,82.119,0.39342015]
[1646640489608,2.83613526,82.174,82.117,46.13362235]
[1646640489809,1.60354243,82.173,82.117,46.13362235]
[1646640490009,1.60354243,82.171,82.117,46.13362235]
[1646640490530,1.60354243,82.17,82.117,46.13362235]
[1646640491109,4.43967769,82.171,82.117,46.13362235]
[1646640491311,1.60354243,82.161,82.117,46.13362235]
[1646640491510,1.60354243,82.154,82.082,6.086]
[1646640491910,1.60354243,82.144,82.078,120.5]
[1646640492110,1.60354243,82.144,82.082,120.5]
[1646640492311,1.60354243,82.145,82.082,120.5]
[1646640492913,1.60354243,82.148,82.082,120.5]
[1646640493114,1.60354243,82.148,82.083,6.089]
[1646640493314,1.60354243,82.148,82.079,120.5]
[1646640493315,1.60354243,82.148,82.084,48.81433456]
[1646640493513,1.60354243,82.148,82.085,6.088]
[1646640493715,1.60354243,82.145,82.084,48.81433456]
[1646640494116,2.83613526,82.144,82.084,48.81433456]
[1646640494318,2.83613526,82.144,82.086,0.53076681]
[1646640494516,2.83613526,82.144,82.084,48.81433456]
[1646640494716,1.60354243,82.142,82.084,48.81433456]
[1646640495118,1.60354243,82.142,82.085,120.5]
[1646640495315,1.60354243,82.142,82.086,0.40028116]
[1646640495915,1.60354243,82.142,82.084,48.81433456]
[1646640496518,1.60354243,82.143,82.085,6.089]
[1646640496918,4.43967769,82.143,82.085,6.089]
[1646640497516,2.83613526,82.143,82.084,48.81433456]
[1646640497919,4.43967769,82.143,82.084,48.81433456]
[1646640498836,4.43967769,82.143,82.086,0.4887786]
[1646640499038,4.43967769,82.143,82.084,48.81433456]
[1646640499440,4.43967769,82.143,82.086,0.41339883]
[1646640499638,1.60354243,82.143,82.086,0.41339883]
[1646640499839,29.51691124,82.189,82.086,0.41339883]
[1646640499840,0.00354243,82.148,82.091,120.5]
[1646640500039,0.00354243,82.161,82.092,0.63989434]
[1646640500239,3.24502968,82.194,82.092,0.63989434]
[1646640500439,3.24502968,82.194,82.094,120.5]
[1646640500640,3.24502968,82.197,82.102,0.66117894]
[1646640500840,3.24502968,82.199,82.111,120.5]
[1646640501039,3.24502968,82.199,82.112,0.66117894]
[1646640501242,24.27138689,82.198,82.112,0.66117894]
[1646640501543,15.62435486,82.197,82.112,0.66117894]
[1646640501746,6.63052896,82.196,82.112,0.66117894]
[1646640501945,30.90191585,82.196,82.111,120.5]
[1646640502143,6.63052896,82.195,82.111,120.5]
[1646640502743,24.27138689,82.194,82.111,120.5]
[1646640502942,27.51641657,82.194,82.111,120.5]
[1646640503142,39.37009438,82.192,82.111,120.5]
[1646640503543,30.90191585,82.191,82.111,120.5]
[1646640503742,6.63052896,82.19,82.111,120.5]
[1646640503942,30.90191585,82.19,82.111,120.5]
[1646640504142,49.96818963,82.189,82.111,120.5]
[1646640504342,6.63052896,82.188,82.111,120.5]
[1646640504545,83.96721261,82.188,82.111,120.5]
[1646640504742,30.90191585,82.187,82.111,120.5]
[1646640504944,24.27138689,82.187,82.11,14.68]
[1646640505145,3.24502968,82.181,82.102,59.3140387]
[1646640505347,3.24502968,82.175,82.102,59.3140387]
[1646640505745,3.24502968,82.173,82.102,59.3140387]
[1646640505945,3.24502968,82.17,82.07,14.68]
[1646640506145,3.24502968,82.169,82.063,24.7449]
[1646640506348,3.24502968,82.164,82.063,24.7449]
[1646640506646,3.24502968,82.16,82.063,24.7449]
[1646640506847,19.06504565,82.159,82.063,24.7449]
[1646640507052,28.94145618,82.159,82.071,120.5]
[1646640507246,33.738903,82.158,82.071,120.5]
[1646640507446,52.80394865,82.158,82.071,120.5]
[1646640507647,33.738903,82.157,82.071,120.5]
[1646640507847,6.63138085,82.156,82.071,120.5]
[1646640508045,33.738903,82.156,82.071,120.5]
[1646640508247,25.6964265,82.155,82.071,120.5]
[1646640508546,25.6964265,82.154,82.071,120.5]
[1646640508846,6.63138085,82.153,82.071,120.5]
[1646640509045,28.53256176,82.153,82.071,120.5]
[1646640509246,9.46751611,82.152,82.071,120.5]
[1646640509446,6.63138085,82.151,82.071,120.5]
[1646640509649,33.738903,82.151,82.071,120.5]
[1646640509846,21.90118091,82.15,82.071,120.5]
[1646640510048,46.1725678,82.15,82.071,120.5]
[1646640510247,2.83613526,82.149,82.071,120.5]
[1646640511349,27.10752215,82.149,82.071,120.5]
[1646640511551,19.04008177,82.148,82.071,120.5]
[1646640511748,21.87621703,82.148,82.071,120.5]
[1646640511948,2.83613526,82.147,82.071,120.5]
[1646640512951,2.83613526,82.147,82.07,55.78072746]
[1646640512952,18.282,82.14,82.07,55.78072746]
[1646640513350,27.10752215,82.139,82.07,55.78072746]
[1646640513550,46.15388156,82.139,82.07,55.78072746]
[1646640513753,27.10752215,82.138,82.07,55.78072746]
[1646640513952,18.284,82.13,82.063,24.7449]
[1646640514150,18.284,82.13,82.03,14.68]
[1646640514354,19.1573367,82.129,82.02,14.68]
[1646640514550,46.15388156,82.129,82.021,76.6921]
[1646640514755,21.88249467,82.128,82.021,76.6921]
[1646640515051,43.3177463,82.127,82.022,173.1900681]
[1646640515252,18.2879,82.12,82.025,0.4366142]
[1646640515450,18.2879,82.12,82.024,120.5]
[1646640515650,27.10752215,82.119,82.024,120.5]
[1646640516053,27.10752215,82.118,82.024,120.5]
[1646640516454,2.83613526,82.117,82.024,120.5]
[1646640518757,2.83613526,82.117,82.025,0.6210391]
[1646640518957,2.83613526,82.117,82.031,120.5]
[1646640519158,2.83613526,82.117,82.032,0.63986033]
[1646640519658,2.83613526,82.117,82.034,120.5]
[1646640519862,2.83613526,82.117,82.036,120.5]
[1646640520058,2.83613526,82.117,82.038,120.5]
[1646640520259,2.83613526,82.117,82.04,120.5]
[1646640520460,2.83613526,82.117,82.041,0.71946857]
[1646640520758,2.83613526,82.117,82.044,0.71946857]
[1646640520962,2.83613526,82.129,82.046,0.71946857]
[1646640521159,24.2838,82.131,82.05,135.18]
[1646640521358,24.2838,82.131,82.051,0.71946857]